bitfinex/quotes_BTCUSD_20250523
["timestamp","ask_amount","ask_price","bid_price","bid_amount"]
[1748005883025,0.00215308,108290.0,108280.0,1.03163268]
[1748005883668,0.01138677,108290.0,108280.0,1.05505473]
[1748005883886,0.01238677,108290.0,108280.0,1.05505473]
[1748005884144,0.04008887,108290.0,108280.0,1.31342497]
[1748005884356,0.20631066,108290.0,108280.0,1.69180513]
[1748005884571,0.19707663,108290.0,108280.0,1.1222429]
[1748005884794,0.19707663,108290.0,108280.0,1.3990829]
[1748005885002,0.18784234,108290.0,108280.0,1.3990829]
[1748005885214,0.18784234,108290.0,108280.0,1.57838151]
[1748005885439,0.18784234,108290.0,108280.0,1.06443989]
[1748005885687,0.24984234,108290.0,108280.0,0.00877904]
[1748005885897,0.21974234,108290.0,108280.0,0.00877904]
[1748005886346,0.25044234,108290.0,108280.0,0.00877904]
[1748005886823,0.21974234,108290.0,108280.0,0.00877904]
[1748005887257,0.19394145,108280.0,108270.0,1.46311989]
[1748005887479,0.19394145,108280.0,108270.0,0.76199989]
[1748005887687,0.19394145,108280.0,108270.0,1.46311989]
[1748005888118,0.21241147,108280.0,108270.0,1.46311989]
[1748005888331,0.20317667,108280.0,108270.0,1.46311989]
[1748005888558,0.20317667,108280.0,108270.0,0.76199989]
[1748005888773,0.20317667,108280.0,108270.0,1.46311989]
[1748005888774,0.23387667,108280.0,108270.0,1.46311989]
[1748005890054,0.20317667,108280.0,108270.0,1.46311989]
[1748005890865,0.20317667,108280.0,108270.0,0.76199989]
[1748005891080,0.23387667,108280.0,108270.0,1.46311989]
[1748005891905,0.20317667,108280.0,108270.0,1.46311989]
[1748005892125,0.20317667,108280.0,108270.0,1.65707942]
[1748005892340,0.19394162,108280.0,108270.0,1.47235605]
[1748005892556,0.19394162,108280.0,108270.0,1.46311989]
[1748005892763,0.19394162,108280.0,108270.0,1.47235605]
[1748005892993,0.19394162,108280.0,108270.0,1.46311989]
[1748005893628,0.19394162,108280.0,108270.0,1.66631533]
[1748005893841,0.19394162,108280.0,108270.0,1.46311989]
[1748005896416,0.19394162,108280.0,108270.0,1.65707934]
[1748005896641,0.22164653,108280.0,108270.0,1.75586072]
[1748005896865,0.21241173,108280.0,108270.0,1.75586072]
[1748005897089,0.20317668,108280.0,108270.0,1.75586089]
[1748005897562,0.01847002,108280.0,108270.0,1.77433245]
[1748005897795,0.20331083,108290.0,108280.0,0.54848239]
[1748005898059,0.20331083,108290.0,108280.0,0.62879272]
[1748005898297,0.20331083,108290.0,108280.0,0.76408641]
[1748005898508,0.19407671,108290.0,108280.0,0.76408641]
[1748005898937,0.19407671,108290.0,108280.0,0.76394043]
[1748005899736,0.19507671,108290.0,108280.0,0.42394043]
[1748005899967,0.19707671,108290.0,108280.0,0.43271947]
[1748005902912,0.19707671,108290.0,108280.0,0.11271947]
[1748005903128,0.19707671,108290.0,108280.0,0.38951947]
[1748005903403,0.19707671,108290.0,108280.0,0.70951947]
[1748005903615,0.19707671,108290.0,108280.0,0.43271947]
[1748005903860,0.22757671,108290.0,108280.0,0.72289391]
[1748005904304,0.19707671,108290.0,108280.0,0.72289391]
[1748005904520,0.00315308,108290.0,108280.0,1.33714578]
[1748005904739,0.00315308,108290.0,108280.0,1.48517276]
[1748005905198,0.00315308,108290.0,108280.0,1.52657224]
[1748005905393,0.00115308,108290.0,108280.0,1.55827224]
[1748005905630,0.00015308,108290.0,108280.0,1.55827224]
[1748005905839,0.00938694,108290.0,108280.0,1.55827224]
[1748005906050,0.03708938,108290.0,108280.0,1.56750721]
[1748005906258,0.0370893,108290.0,108280.0,1.51464192]
[1748005906475,0.03708938,108290.0,108280.0,1.49617224]
[1748005906682,0.03708938,108290.0,108280.0,1.50081577]
[1748005906900,0.01862089,108290.0,108280.0,1.45491577]
[1748005907114,0.00938677,108290.0,108280.0,1.45491577]
[1748005907330,0.00938677,108290.0,108280.0,1.48901577]
[1748005907771,0.01862063,108290.0,108280.0,1.48901577]
[1748005907982,0.01862063,108290.0,108280.0,1.80901577]
[1748005908635,0.00938677,108290.0,108280.0,1.7345937]
[1748005908846,0.00938677,108290.0,108280.0,1.7014937]
[1748005909084,0.00938677,108290.0,108280.0,1.7343937]
[1748005909345,0.00015308,108290.0,108280.0,1.7343937]
[1748005910003,0.00015308,108290.0,108280.0,2.1070937]
[1748005910445,0.00938677,108290.0,108280.0,2.1070937]
[1748005910690,0.00015308,108290.0,108280.0,2.1070937]
[1748005910903,0.00015308,108290.0,108280.0,1.8302937]
[1748005911243,0.00015308,108290.0,108280.0,2.1070937]
[1748005911678,0.00938677,108290.0,108280.0,2.0754937]
[1748005911900,0.01862063,108290.0,108280.0,2.0425937]
[1748005912123,0.00938677,108290.0,108280.0,2.0425937]
[1748005912344,0.00015308,108290.0,108280.0,2.0425937]
[1748005912556,0.00015308,108290.0,108280.0,2.8524937]
[1748005912773,0.00015308,108290.0,108280.0,2.5607937]
[1748005913447,0.00938677,108290.0,108280.0,2.5607937]
[1748005913882,0.00015308,108290.0,108280.0,2.5606737]
[1748005915414,4.404e-05,108300.0,108290.0,0.56693246]
[1748005915633,4.404e-05,108300.0,108290.0,0.65647802]
[1748005916083,4.404e-05,108300.0,108290.0,0.97647802]
[1748005917022,0.035,108330.0,108320.0,0.22687363]
[1748005917253,0.00215299,108330.0,108320.0,1.75453919]
[1748005917498,0.00215299,108330.0,108320.0,1.80043919]
[1748005917733,0.00643268,108340.0,108330.0,0.56685403]
[1748005917973,0.17077378,108380.0,108370.0,0.21223483]
[1748005917974,0.06354664,108380.0,108370.0,0.21223483]
[1748005918187,0.06073544,108380.0,108370.0,0.90792133]
[1748005918462,0.03305652,108380.0,108370.0,1.36514871]
[1748005918705,0.00050988,108380.0,108370.0,1.68514879]
[1748005918939,0.00973599,108380.0,108370.0,1.47682755]
[1748005919186,0.00050988,108380.0,108370.0,1.68861412]
[1748005919408,0.00350988,108380.0,108370.0,1.68861412]
[1748005919620,0.00050988,108380.0,108370.0,1.68861412]
[1748005919839,0.00250988,108380.0,108370.0,1.68861412]
[1748005920706,0.05066874,108390.0,108380.0,0.21221523]
[1748005920921,0.05082167,108390.0,108380.0,1.35570164]
[1748005921369,0.05082167,108390.0,108380.0,1.67570164]
[1748005921791,0.05082167,108390.0,108380.0,1.69544039]
[1748005922242,0.07949821,108390.0,108380.0,1.66776105]
[1748005922458,0.31989181,108390.0,108380.0,0.35973875]
[1748005922676,0.32089181,108390.0,108380.0,0.44245875]
[1748005922892,0.32089181,108390.0,108380.0,0.43149904]
[1748005923117,0.32089181,108390.0,108380.0,0.95603493]
[1748005923338,0.32089181,108390.0,108380.0,0.97057578]
[1748005923339,0.33011809,108390.0,108380.0,0.97057578]
[1748005923512,0.32089232,108390.0,108380.0,1.06263989]
[1748005924081,0.32089232,108390.0,108380.0,1.24717578]
[1748005924677,0.28834568,108390.0,108380.0,1.24717578]
[1748005924886,0.27911983,108390.0,108380.0,1.24713578]
[1748005925128,0.27911983,108390.0,108380.0,1.06259989]
[1748005925582,0.09460071,108390.0,108380.0,1.25636257]
[1748005925807,0.29757077,108390.0,108380.0,1.24713578]
[1748005926043,0.10382554,108390.0,108380.0,1.26558893]
[1748005926274,0.02027503,108390.0,108380.0,1.36436068]
[1748005926488,0.02027503,108390.0,108380.0,0.66508068]
[1748005926698,0.02027503,108390.0,108380.0,1.36284068]
[1748005927999,0.02027503,108390.0,108380.0,1.37380039]
[1748005928717,6e-05,108400.0,108390.0,0.21219565]
[1748005928940,6e-05,108400.0,108390.0,0.30174121]
[1748005929394,6e-05,108400.0,108390.0,1.31942121]
[1748005929395,0.00928432,108400.0,108390.0,1.31942121]
[1748005929605,6e-05,108400.0,108390.0,1.33915996]
[1748005930056,6e-05,108400.0,108390.0,1.34115996]
[1748005930490,6e-05,108400.0,108390.0,1.40160081]
[1748005930701,6e-05,108400.0,108390.0,1.35570081]
[1748005931555,6e-05,108400.0,108390.0,1.35670081]
[1748005931790,6e-05,108400.0,108390.0,1.36038411]
[1748005934597,0.25316126,108400.0,108390.0,1.01811199]
[1748005934897,0.26711185,108400.0,108390.0,1.00888605]
[1748005935365,0.25788693,108400.0,108390.0,1.00888605]
[1748005935923,0.05020941,108400.0,108390.0,1.02729784]
[1748005936298,0.24393634,108400.0,108390.0,1.02729784]
[1748005936479,0.24393634,108400.0,108390.0,0.32047199]
[1748005936730,0.24393634,108400.0,108390.0,1.02729784]
[1748005936948,0.04098432,108400.0,108390.0,1.36729776]
[1748005937157,0.06865882,108400.0,108390.0,1.36729776]
[1748005937372,0.05943373,108400.0,108390.0,1.37652344]
[1748005937621,0.06865873,108400.0,108390.0,1.37652344]
[1748005937838,0.05943373,108400.0,108390.0,1.38574904]
[1748005938020,0.0502089,108400.0,108390.0,1.38574904]
[1748005938229,0.05943365,108400.0,108390.0,1.39497447]
[1748005938480,0.05943365,108400.0,108390.0,1.3765231]
[1748005938706,6e-05,108400.0,108390.0,1.70194051]
[1748005938922,0.01850881,108400.0,108390.0,1.72039145]
[1748005939137,0.01850873,108400.0,108390.0,1.72039145]
[1748005939348,6e-05,108400.0,108390.0,1.72039145]
[1748005940191,6e-05,108400.0,108390.0,1.6948867]
[1748005940446,0.01850881,108400.0,108390.0,1.6948867]
[1748005940662,0.23491142,108400.0,108390.0,1.47346545]
[1748005940868,0.26691142,108400.0,108390.0,1.66721025]
[1748005941086,0.26691142,108400.0,108390.0,1.65798431]
[1748005941301,0.26691142,108400.0,108390.0,1.66721025]
[1748005941725,0.26691142,108400.0,108390.0,1.66713025]
[1748005941939,0.04118441,108400.0,108390.0,1.6855817]
[1748005942163,6e-05,108400.0,108390.0,1.69480704]
[1748005943234,6e-05,108400.0,108390.0,1.6855817]
[1748005943461,0.00928441,108400.0,108390.0,1.69480704]
[1748005943672,0.06003351,108410.0,108400.0,0.56671719]
[1748005943946,0.06003351,108410.0,108400.0,0.66548724]
[1748005943947,0.03236224,108410.0,108400.0,0.66548724]
[1748005944159,0.00216224,108410.0,108400.0,0.66548724]
[1748005944376,0.00216224,108410.0,108400.0,0.82978448]
[1748005944599,0.00216224,108410.0,108400.0,0.8482344]
[1748005945018,0.00216224,108410.0,108400.0,0.85701344]
[1748005945236,0.00216224,108410.0,108400.0,0.85801344]
[1748005946070,0.01138571,108410.0,108400.0,0.83956437]
[1748005946285,0.01138597,108410.0,108400.0,0.88829964]
[1748005946497,0.00216224,108410.0,108400.0,0.88829964]
[1748005947563,0.00216224,108410.0,108400.0,0.88729964]
[1748005947789,0.19587053,108410.0,108400.0,0.86162557]
[1748005947999,0.26909409,108410.0,108400.0,0.76676416]
[1748005948208,0.09383334,108410.0,108400.0,1.48269357]
[1748005948417,0.09043675,108410.0,108400.0,1.50645891]
[1748005948596,0.0996609,108410.0,108400.0,1.45872373]
[1748005948798,0.0996609,108410.0,108400.0,1.38379989]
[1748005949013,0.25770872,108410.0,108400.0,0.01177904]
[1748005949226,0.26693279,108410.0,108400.0,0.28829904]
[1748005950060,0.72380585,108410.0,108400.0,0.28829904]
[1748005950276,0.72380585,108410.0,108400.0,0.01177904]
[1748005950502,0.20297014,108390.0,108380.0,0.40016]
[1748005950714,0.3537157,108390.0,108380.0,0.40016]
[1748005952171,0.7210432,108390.0,108380.0,0.002]
[1748005952389,0.22616251,108380.0,108370.0,0.01095681]
[1748005952597,0.34580807,108380.0,108370.0,0.01110974]
[1748005953036,0.29580807,108380.0,108370.0,0.01110974]
[1748005953237,0.30503469,108380.0,108370.0,0.01110974]
[1748005953457,0.72141755,108380.0,108370.0,0.01110974]
[1748005953658,0.99793755,108380.0,108370.0,0.01110974]
[1748005953867,0.63061005,108380.0,108370.0,0.00015293]
[1748005954560,0.63261005,108380.0,108370.0,0.00015293]
[1748005954818,0.63561005,108380.0,108370.0,0.00015293]
[1748005955022,0.63361005,108380.0,108370.0,0.00015293]
[1748005955460,0.63761005,108380.0,108370.0,0.00015293]
[1748005955841,0.58855469,108380.0,108370.0,0.00015293]
[1748005956225,0.58859469,108380.0,108370.0,0.00015293]
[1748005957072,0.31203469,108380.0,108370.0,0.00015293]
[1748005961411,1.09329016,108380.0,108370.0,0.00015293]
[1748005962041,1.10329016,108380.0,108370.0,0.00015293]
[1748005962246,1.19281167,108380.0,108370.0,0.00015293]
[1748005963939,1.61293167,108380.0,108370.0,0.00015293]
[1748005967140,1.19281167,108380.0,108370.0,0.00015293]
[1748005967358,1.46945167,108380.0,108370.0,0.00015293]
[1748005967598,1.49399252,108380.0,108370.0,0.00015293]
[1748005968080,1.49399252,108380.0,108310.0,0.08537888]
[1748005968081,0.2031013,108320.0,108310.0,0.78213888]
[1748005968961,0.2031013,108320.0,108310.0,0.77118207]
[1748005969207,0.2031013,108320.0,108310.0,0.49454207]
[1748005969644,0.2031013,108320.0,108310.0,0.49505195]
[1748005970286,0.2031013,108320.0,108310.0,0.49705195]
[1748005970747,0.2031013,108320.0,108310.0,0.49505195]
[1748005971182,0.2031013,108320.0,108310.0,0.42362988]
[1748005971420,0.2689013,108320.0,108310.0,0.42362988]
[1748005971702,0.2689013,108320.0,108310.0,0.42162988]
[1748005971935,0.2689013,108320.0,108310.0,0.42270988]
[1748005973464,0.2359013,108320.0,108310.0,0.42270988]
[1748005973669,0.2031013,108320.0,108310.0,0.42270988]
[1748005974402,0.18460402,108340.0,108320.0,0.22156399]
[1748005974572,0.01845937,108340.0,108330.0,0.48899301]
[1748005974771,0.2163998,108360.0,108330.0,0.46130106]
[1748005975143,0.21229402,108340.0,108330.0,0.41276641]
[1748005975314,0.21229402,108340.0,108330.0,0.71146085]
[1748005975315,0.20306425,108340.0,108330.0,0.71146085]
[1748005975785,0.20306425,108340.0,108330.0,0.72015188]
[1748005975994,0.20306425,108340.0,108330.0,0.72115188]
[1748005976200,0.20306425,108340.0,108330.0,0.70561103]
[1748005976426,0.20306425,108340.0,108330.0,0.70565103]
[1748005977074,0.20306425,108340.0,108330.0,0.89027209]
[1748005977219,0.20306425,108340.0,108330.0,0.89950314]
[1748005977432,0.20306425,108340.0,108330.0,0.70565103]
[1748005978074,0.20306425,108340.0,108330.0,0.73885103]
[1748005978435,0.20306425,108340.0,108330.0,0.70565103]
[1748005980034,0.18458698,108350.0,108340.0,0.18460402]
[1748005980259,0.20306382,108340.0,108330.0,0.00869103]
[1748005980480,0.32560938,108340.0,108330.0,0.00869103]
[1748005980694,0.72420853,108340.0,108330.0,0.00869103]
[1748005981340,1.00088853,108340.0,108330.0,0.00869103]
[1748005981555,0.22655194,108330.0,108320.0,0.42024]
[1748005981817,0.25726983,108320.0,108310.0,0.00050988]
[1748005982014,0.34681539,108320.0,108310.0,0.00050988]
[1748005982828,0.34681539,108320.0,108310.0,0.00927457]
[1748005983284,0.19392355,108290.0,108280.0,0.85262158]
[1748005983495,0.19392355,108290.0,108280.0,1.29466641]
[1748005983717,0.19392355,108290.0,108280.0,1.2629194]
[1748005983929,0.19392355,108290.0,108280.0,0.81883299]
[1748005984160,0.00923429,108290.0,108280.0,0.81883299]
[1748005984378,0.00923378,108290.0,108280.0,0.83337384]
[1748005984606,0.18465515,108310.0,108280.0,0.04591944]
[1748005984607,0.00923216,108310.0,108280.0,0.04591944]
[1748005984819,0.18662106,108330.0,108310.0,0.22158488]
[1748005985080,0.002,108330.0,108320.0,0.2215645]
[1748005985283,0.01123045,108330.0,108320.0,0.19387]
[1748005985501,0.22354389,108330.0,108320.0,0.19386992]
[1748005985627,0.2235438,108330.0,108320.0,0.20310182]
[1748005985836,0.2235438,108330.0,108320.0,0.47982182]
[1748005986038,0.21431335,108330.0,108320.0,0.47059]
[1748005986228,0.21546612,108330.0,108320.0,0.89003]
[1748005986633,0.21746612,108330.0,108320.0,0.8807981]
[1748005986847,0.21646612,108330.0,108320.0,0.8807981]
[1748005987080,0.21646612,108330.0,108320.0,0.41944]
[1748005987277,0.20723558,108330.0,108320.0,0.8807981]
[1748005987723,0.02261452,108330.0,108320.0,0.89926165]
[1748005987966,0.20523558,108330.0,108320.0,0.8807981]
[1748005988221,0.0206141,108330.0,108320.0,0.8807981]
[1748005988457,0.0206141,108330.0,108320.0,1.41507919]
[1748005988458,0.00215277,108330.0,108320.0,1.41507919]
[1748005988702,0.00922619,108380.0,108370.0,0.19378022]
[1748005988953,0.03067688,108390.0,108380.0,0.18453589]
[1748005989162,0.01845298,108380.0,108370.0,0.88994048]
[1748005989370,0.20298887,108380.0,108360.0,0.71844]
[1748005989585,0.1966639,108370.0,108360.0,0.67516]
[1748005989789,0.19378056,108370.0,108360.0,1.09456]
[1748005991244,0.21223414,108370.0,108360.0,1.30681483]
[1748005991454,0.22146238,108370.0,108360.0,1.30881483]
[1748005991656,0.21223525,108370.0,108360.0,1.31081483]
[1748005991867,0.18802905,108390.0,108370.0,0.20300778]
[1748005992079,0.20298921,108380.0,108370.0,0.19378056]
[1748005992295,0.21570584,108390.0,108380.0,0.7594]
[1748005992495,0.2064805,108390.0,108380.0,0.95316268]
[1748005992717,0.19376251,108380.0,108370.0,0.02779074]
[1748005992932,0.19376251,108380.0,108370.0,0.69604]
[1748005993568,0.19378056,108370.0,108360.0,0.73844]
[1748005993784,0.20300795,108370.0,108360.0,0.39844]
[1748005993987,0.20300795,108370.0,108360.0,1.09448]
[1748005994843,0.20200795,108370.0,108360.0,1.09448]
[1748005995240,0.20200795,108370.0,108360.0,1.12144524]
[1748005995455,0.26470795,108370.0,108360.0,1.12144524]
[1748005995673,0.20304507,108350.0,108340.0,0.41936]
[1748005995873,0.20304507,108350.0,108340.0,0.69604]
[1748005996288,0.20304507,108350.0,108340.0,0.70478388]
[1748005997114,0.20304507,108350.0,108340.0,0.73186374]
[1748005997381,0.20304507,108350.0,108340.0,0.03582374]
[1748005997581,0.26654507,108350.0,108340.0,0.00874388]
[1748005997780,0.20304507,108350.0,108340.0,0.00874388]
[1748005997966,0.02768675,108350.0,108340.0,0.22103747]
[1748005998190,0.20304549,108350.0,108340.0,0.00874388]
[1748005998398,0.20304549,108350.0,108340.0,0.01274388]
[1748005998603,0.20304549,108350.0,108340.0,0.01074388]
[1748005998807,0.20304549,108350.0,108340.0,0.002]
[1748005999006,0.19383405,108340.0,108330.0,0.27668]
[1748005999570,0.19385194,108330.0,108320.0,1.47872]
[1748005999776,0.19385194,108330.0,108320.0,0.73936]
[1748005999982,0.3520431,108330.0,108320.0,0.00975103]
[1748006000178,0.3847431,108330.0,108320.0,0.00975103]
[1748006000590,0.3468975,108330.0,108320.0,0.00975103]
[1748006000819,0.19385194,108330.0,108320.0,0.00975103]
[1748006001029,0.2833975,108330.0,108320.0,0.00975103]
[1748006001227,0.3453975,108330.0,108320.0,0.001]
[1748006001986,0.3473975,108330.0,108320.0,0.001]
[1748006002197,0.3483975,108330.0,108320.0,0.001]
[1748006002406,0.3523975,108330.0,108320.0,0.001]
[1748006002618,0.3493975,108330.0,108320.0,0.001]
[1748006002836,0.3533975,108330.0,108320.0,0.001]
[1748006003478,0.2913975,108330.0,108320.0,0.001]
[1748006004313,0.19386983,108320.0,108310.0,0.4464553]
[1748006004517,0.18460402,108340.0,108320.0,0.00923122]
[1748006004751,0.01845912,108340.0,108330.0,0.47057185]
[1748006004960,0.03691874,108340.0,108330.0,0.49826406]
[1748006005166,0.03691865,108340.0,108330.0,0.58780971]
[1748006005369,0.03691865,108340.0,108330.0,0.60579477]
[1748006005370,0.04614868,108340.0,108330.0,0.60579477]
[1748006005582,0.04614936,108340.0,108330.0,0.60579477]
[1748006005820,0.2215243,108340.0,108330.0,0.56887228]
[1748006006018,0.20306433,108340.0,108330.0,0.28547461]
[1748006006238,0.20606433,108340.0,108330.0,0.00875461]
[1748006006438,0.20606433,108340.0,108330.0,0.70491461]
[1748006007562,0.20406433,108340.0,108330.0,0.70491461]
[1748006007992,0.20606433,108340.0,108330.0,0.70491461]
[1748006008668,0.20606433,108340.0,108330.0,0.69616]
[1748006009401,0.20606433,108340.0,108330.0,0.41944]
[1748006009650,0.20606433,108340.0,108330.0,0.69616]
[1748006010971,0.20406433,108340.0,108330.0,0.69616]
[1748006011211,0.20506433,108340.0,108330.0,0.69616]
[1748006013728,0.19385202,108330.0,108320.0,0.71844]
[1748006013935,0.19385202,108330.0,108320.0,1.37793539]
[1748006014139,0.19385202,108330.0,108320.0,1.36870366]
[1748006014320,0.19385202,108330.0,108320.0,1.37793539]
[1748006014529,0.19385202,108330.0,108320.0,1.36870366]
[1748006014735,0.19385202,108330.0,108320.0,1.37793539]
[1748006015327,0.19385202,108330.0,108320.0,1.39592572]
[1748006015531,0.19385202,108330.0,108320.0,1.40515728]
[1748006017061,0.20308273,108330.0,108320.0,1.41438867]
[1748006017298,0.20308273,108330.0,108320.0,0.82659869]
[1748006017717,0.20308273,108330.0,108320.0,1.10327869]
[1748006018189,0.1938516,108330.0,108320.0,1.29714861]
[1748006018415,0.18462106,108330.0,108320.0,1.10327869]
[1748006019168,0.21648698,108350.0,108340.0,0.18460402]
[1748006019406,0.21227373,108350.0,108340.0,0.47051413]
[1748006019645,0.20304507,108350.0,108340.0,0.27668]
[1748006020326,0.20304507,108350.0,108340.0,0.47051422]
[1748006020545,0.20304507,108350.0,108340.0,0.27668]
[1748006020981,0.20304507,108350.0,108340.0,0.28543869]
[1748006021234,0.20404507,108350.0,108340.0,0.28543869]
[1748006021456,0.20504507,108350.0,108340.0,0.28543869]
[1748006022734,0.20504507,108350.0,108340.0,0.47927291]
[1748006022963,0.20504507,108350.0,108340.0,1.01164889]
[1748006022964,0.002,108350.0,108340.0,1.01164889]
[1748006023247,0.01845622,108360.0,108350.0,0.01454085]
[1748006023537,0.20302651,108360.0,108350.0,0.52260641]
[1748006023719,0.20302651,108360.0,108350.0,0.78474556]
[1748006023944,0.19381615,108350.0,108340.0,0.00875869]
[1748006024151,0.19381615,108350.0,108340.0,0.79350425]
[1748006024587,0.20304524,108350.0,108340.0,0.97857961]
[1748006024802,0.20304524,108350.0,108340.0,0.6952]
[1748006025248,0.20304524,108350.0,108340.0,0.87980402]
[1748006025249,0.20404524,108350.0,108340.0,0.87980402]
[1748006025422,0.21427458,108350.0,108340.0,0.87980402]
[1748006025639,0.20504549,108350.0,108340.0,0.6952]
[1748006026035,0.20504549,108350.0,108340.0,0.70396526]
[1748006026397,0.20504549,108350.0,108340.0,0.70392526]
[1748006026752,0.20504549,108350.0,108340.0,0.00876526]
[1748006026956,0.20504549,108350.0,108340.0,0.70392526]
[1748006027182,0.20504549,108350.0,108340.0,1.02392526]
[1748006027382,0.20504549,108350.0,108340.0,0.70392526]
[1748006027635,0.26724549,108350.0,108340.0,0.70392526]
[1748006028198,0.01122866,108350.0,108340.0,0.89775948]
[1748006028403,0.22350299,108350.0,108340.0,0.90698959]
[1748006028613,0.21427433,108350.0,108340.0,0.70392526]
[1748006028832,0.20504541,108350.0,108340.0,0.70392526]
[1748006030961,0.20504541,108350.0,108340.0,1.02392526]
[1748006032255,0.27004541,108350.0,108340.0,0.70392526]
[1748006033506,0.20504541,108350.0,108340.0,0.70392526]
[1748006034635,0.26834541,108350.0,108340.0,0.70392526]
[1748006035292,0.26834541,108350.0,108340.0,0.42724526]
[1748006035675,0.26834541,108350.0,108340.0,0.70392526]
[1748006036542,0.35789097,108350.0,108340.0,0.70392526]
[1748006038466,0.23624541,108350.0,108340.0,0.70392526]
[1748006038715,0.20504541,108350.0,108340.0,0.70392526]
[1748006039574,0.26854541,108350.0,108340.0,0.70392526]
[1748006040727,0.26854541,108350.0,108340.0,0.42724526]
[1748006040932,0.26854541,108350.0,108340.0,0.70392526]
[1748006041129,0.35809097,108350.0,108340.0,0.42724526]
[1748006041330,0.38421216,108350.0,108340.0,0.70392526]
[1748006041734,0.35809097,108350.0,108340.0,0.70392526]
[1748006042181,0.35809097,108350.0,108340.0,0.69516]
[1748006042521,0.35809097,108350.0,108340.0,0.22889922]
[1748006043149,0.19385194,108330.0,108320.0,0.39844]
[1748006043413,0.19385194,108330.0,108320.0,1.0936]
[1748006044310,0.19385194,108330.0,108320.0,0.81692]
[1748006044532,0.19385194,108330.0,108320.0,1.0956]
[1748006044990,0.19385194,108330.0,108320.0,1.10438428]
[1748006045487,0.19385194,108330.0,108320.0,1.10638428]
[1748006050273,0.29629754,108330.0,108320.0,0.82970428]
[1748006050501,0.3858431,108330.0,108320.0,0.82970428]
[1748006051149,0.3858431,108330.0,108320.0,0.82092]
[1748006051558,0.3858431,108330.0,108320.0,0.004]
[1748006051766,0.1846381,108320.0,108310.0,0.19388337]
[1748006052013,0.19386992,108320.0,108310.0,0.69435277]
[1748006052432,0.19386992,108320.0,108310.0,0.7031449]
[1748006053301,0.24738698,108350.0,108320.0,0.1846381]
[1748006053532,0.009229,108350.0,108340.0,0.21229385]
[1748006053747,0.009229,108350.0,108340.0,0.27679385]
[1748006053748,0.01845767,108350.0,108340.0,0.27679385]
[1748006053960,0.00922875,108350.0,108340.0,0.37556901]
[1748006054203,0.18458372,108370.0,108360.0,0.18456995]
[1748006054440,0.18458372,108370.0,108360.0,0.69424]
[1748006055128,0.1844441,108370.0,108360.0,0.69424]
[1748006055585,0.20351741,108370.0,108360.0,0.89726668]
[1748006055835,0.03019153,108370.0,108360.0,1.44366042]
[1748006056066,0.00450988,108370.0,108360.0,1.48840127]
[1748006056296,0.01373693,108370.0,108360.0,1.48840127]
[1748006056539,0.0229638,108370.0,108360.0,1.48840127]
[1748006056776,0.00250988,108370.0,108360.0,1.82840127]
[1748006058054,0.00450988,108370.0,108360.0,2.14840127]
[1748006058557,0.00050988,108370.0,108360.0,2.17840127]
[1748006058769,0.21374419,108370.0,108360.0,0.92267854]
[1748006058979,0.20451766,108370.0,108360.0,0.44933769]
[1748006059195,0.20351766,108370.0,108360.0,1.14337769]
[1748006059400,0.20351766,108370.0,108360.0,1.06677759]
[1748006059610,0.20351766,108370.0,108360.0,0.37273759]
[1748006059824,0.20351766,108370.0,108360.0,0.05273759]
[1748006060025,0.20351766,108370.0,108360.0,0.74677759]
[1748006060236,0.26811766,108370.0,108360.0,0.74677759]
[1748006060874,0.20351766,108370.0,108360.0,0.74677759]
[1748006061091,0.20351766,108370.0,108360.0,0.93134754]
[1748006061302,0.20351766,108370.0,108360.0,0.91883836]
[1748006061513,0.20351766,108370.0,108360.0,0.9280666]
[1748006061738,0.00050988,108370.0,108360.0,0.92706668]
[1748006061955,0.00050988,108370.0,108360.0,1.04960914]
[1748006062166,0.01896371,108370.0,108360.0,1.36960914]
[1748006062594,0.01896371,108370.0,108360.0,1.39960914]
[1748006062800,0.02819093,108370.0,108360.0,1.39960914]
[1748006063012,0.02819093,108370.0,108360.0,1.40060914]
[1748006063233,0.00050988,108370.0,108360.0,1.40260914]
[1748006063446,0.00050988,108370.0,108360.0,1.43540914]
[1748006063980,0.00973675,108370.0,108360.0,1.43540914]
[1748006064189,0.00050988,108370.0,108360.0,1.43540914]
[1748006064391,0.19428967,108370.0,108360.0,0.88323428]
[1748006064598,0.20351749,108370.0,108360.0,1.14533343]
[1748006065704,0.20351749,108370.0,108360.0,0.82533343]
[1748006066528,0.20351749,108370.0,108360.0,0.81658556]
[1748006067877,0.20351749,108370.0,108360.0,0.72704]
[1748006068113,0.20351749,108370.0,108360.0,0.727]
[1748006068999,0.20351749,108370.0,108360.0,0.726]
[1748006069469,0.20351749,108370.0,108360.0,0.724]
[1748006069719,0.23461749,108370.0,108360.0,0.72396]
[1748006069953,0.26661749,108370.0,108360.0,0.72396]
[1748006070648,0.00050988,108370.0,108360.0,1.03498829]
[1748006070915,0.00050988,108370.0,108360.0,1.04952914]
[1748006071113,0.00973684,108370.0,108360.0,1.45192914]
[1748006071352,0.00973684,108370.0,108360.0,1.38952914]
[1748006071594,0.20351766,108370.0,108360.0,0.03]
[1748006071820,0.20351766,108370.0,108360.0,0.72396]
[1748006072033,0.20351766,108370.0,108360.0,0.72496]
[1748006072249,0.26511766,108370.0,108360.0,0.72496]
[1748006072462,0.26511766,108370.0,108360.0,0.72696]
[1748006073370,0.20351766,108370.0,108360.0,0.72696]
[1748006074479,0.00973693,108370.0,108360.0,0.93921441]
[1748006074703,0.00973684,108370.0,108360.0,1.02875997]
[1748006074944,0.00973701,108370.0,108360.0,1.02875997]
[1748006075187,0.01896388,108370.0,108360.0,1.02875997]
[1748006075856,0.02819118,108370.0,108360.0,1.02875997]
[1748006076052,0.01896388,108370.0,108360.0,1.02875997]
[1748006076354,0.0281911,108370.0,108360.0,1.35751201]
[1748006077337,0.0374184,108370.0,108360.0,1.35751201]
[1748006077556,0.03741892,108370.0,108360.0,1.35751201]
[1748006077990,0.04664639,108370.0,108360.0,1.35751201]
[1748006078413,0.23119982,108370.0,108360.0,1.35751201]
[1748006078839,0.2219726,108370.0,108360.0,1.33905596]
[1748006079056,0.2127453,108370.0,108360.0,1.34828428]
[1748006079484,0.01896499,108370.0,108360.0,1.3667405]
[1748006079709,0.20351791,108370.0,108360.0,1.36674067]
[1748006080152,0.20351791,108370.0,108360.0,1.05596874]
[1748006080358,0.20351791,108370.0,108360.0,1.01905596]
[1748006080570,0.20351791,108370.0,108360.0,1.33905596]
[1748006080791,0.19429044,108370.0,108360.0,1.1452576]
[1748006081010,0.19429044,108370.0,108360.0,0.8252576]
[1748006081461,0.19429044,108370.0,108360.0,1.1452576]
[1748006081905,0.00050988,108370.0,108360.0,1.37205286]
[1748006082135,0.00050988,108370.0,108360.0,1.77785286]
[1748006083962,0.002,108390.0,108380.0,0.21221523]
[1748006084170,0.00215293,108390.0,108380.0,0.59290164]
[1748006084594,0.03905481,108390.0,108380.0,0.91290164]
[1748006084805,0.22357444,108390.0,108380.0,0.94114918]
[1748006085006,0.22357444,108390.0,108380.0,0.95960207]